[Event "Early-Titled-Tuesday-Blitz-November-28-2023"]
[Site "Chess.com"]
[Date "2023.11.28"]
[Round "7"]
[White "InitiatingASC"]
[Black "LeoLV10"]
[Result "1-0"]
[WhiteElo "2353"]
[BlackElo "2524"]
[TimeControl "180+1"]
[EndTime "9:26:01 PST"]
[Termination "InitiatingASC won by resignation"]

1. d4 {[%clk 0:02:56]} 1... Nf6 {[%clk 0:02:59.6]} 2. c4 {[%clk 0:02:55]} 2...
e6 {[%clk 0:03:00.1]} 3. Nc3 {[%clk 0:02:54.1]} 3... Bb4 {[%clk 0:03:00.7]} 4.
e3 {[%clk 0:02:53.3]} 4... b6 {[%clk 0:02:59.8]} 5. Bd3 {[%clk 0:02:53.3]} 5...
Bb7 {[%clk 0:02:59.7]} 6. Nf3 {[%clk 0:02:53]} 6... Ne4 {[%clk 0:02:58.1]} 7.
Qc2 {[%clk 0:02:52.3]} 7... f5 {[%clk 0:02:53.5]} 8. Bxe4 {[%clk 0:02:38.3]}
8... Bxe4 {[%clk 0:02:51.9]} 9. Qb3 {[%clk 0:02:37.5]} 9... a5 {[%clk
0:02:42.5]} 10. a3 {[%clk 0:02:37.4]} 10... Bxc3+ {[%clk 0:02:42.7]} 11. Qxc3
{[%clk 0:02:37.6]} 11... O-O {[%clk 0:02:42.9]} 12. b3 {[%clk 0:02:23.8]} 12...
d6 {[%clk 0:02:42.7]} 13. Bb2 {[%clk 0:02:23.8]} 13... Nd7 {[%clk 0:02:36.4]}
14. O-O-O {[%clk 0:02:16.1]} 14... Rf7 {[%clk 0:02:28.8]} 15. Rhg1 {[%clk
0:02:13.8]} 15... Qe7 {[%clk 0:02:26.4]} 16. Nd2 {[%clk 0:02:05.6]} 16... Bb7
{[%clk 0:02:21]} 17. f3 {[%clk 0:01:58.2]} 17... c5 {[%clk 0:02:10]} 18. Kb1
{[%clk 0:01:40.5]} 18... Rb8 {[%clk 0:01:55.9]} 19. g4 {[%clk 0:01:28.5]} 19...
f4 {[%clk 0:01:51.9]} 20. e4 {[%clk 0:01:21.8]} 20... cxd4 {[%clk 0:01:44.4]}
21. Qxd4 {[%clk 0:01:21.2]} 21... e5 {[%clk 0:01:45.1]} 22. Qf2 {[%clk
0:01:12.5]} 22... Nc5 {[%clk 0:01:42.2]} 23. Kc2 {[%clk 0:01:04]} 23... Rc8
{[%clk 0:01:40.3]} 24. a4 {[%clk 0:00:55.6]} 24... Qe6 {[%clk 0:01:25]} 25. Ba3
{[%clk 0:00:54.1]} 25... Nd7 {[%clk 0:00:28.4]} 26. Kb2 {[%clk 0:00:45.6]} 26...
Nc5 {[%clk 0:00:18.8]} 27. Bxc5 {[%clk 0:00:42.6]} 27... Rxc5 {[%clk 0:00:19.7]}
28. Nb1 {[%clk 0:00:39.4]} 28... Rfc7 {[%clk 0:00:18.9]} 29. Nc3 {[%clk
0:00:27.1]} 29... Ba6 {[%clk 0:00:19.2]} 30. Nd5 {[%clk 0:00:27.2]} 30... Rc8
{[%clk 0:00:18.4]} 31. Rc1 {[%clk 0:00:19.9]} 31... Qe8 {[%clk 0:00:13.5]} 32.
Rgd1 {[%clk 0:00:12.9]} 32... Kh8 {[%clk 0:00:10.8]} 33. Nxb6 {[%clk 0:00:10.8]}
33... R8c6 {[%clk 0:00:11.1]} 34. Nd5 {[%clk 0:00:10.3]} 34... Qb8 {[%clk
0:00:10.8]} 35. Rc3 {[%clk 0:00:10.2]} 35... Rxc4 {[%clk 0:00:09.5]} 36. Rdc1
{[%clk 0:00:06.2]} 36... Rxc3 {[%clk 0:00:09.8]} 37. Rxc3 {[%clk 0:00:06.3]}
37... Rxc3 {[%clk 0:00:08.5]} 38. Nxc3 {[%clk 0:00:06]} 38... Bc4 {[%clk
0:00:07.7]} 39. Qc2 {[%clk 0:00:05.4]} 39... Bg8 {[%clk 0:00:07]} 40. Nb1 {[%clk
0:00:04.1]} 40... h6 {[%clk 0:00:07.6]} 41. Nd2 {[%clk 0:00:04.1]} 41... Qb4
{[%clk 0:00:08]} 42. Qc3 {[%clk 0:00:04.4]} 42... Qb6 {[%clk 0:00:07.8]} 43. Ka3
{[%clk 0:00:04]} 43... d5 {[%clk 0:00:05.8]} 44. exd5 {[%clk 0:00:03.9]} 44...
Bxd5 {[%clk 0:00:06.7]} 45. h4 {[%clk 0:00:04.3]} 45... Qd6+ {[%clk 0:00:06.2]}
46. Kb2 {[%clk 0:00:04.1]} 46... Be6 {[%clk 0:00:05.4]} 47. h5 {[%clk
0:00:04.1]} 47... Bf7 {[%clk 0:00:05.2]} 48. Ne4 {[%clk 0:00:04.3]} 48... Qd5
{[%clk 0:00:05.3]} 49. Qc8+ {[%clk 0:00:03.9]} 49... Kh7 {[%clk 0:00:05.6]} 50.
Qf5+ {[%clk 0:00:04.5]} 50... Kg8 {[%clk 0:00:04.6]} 51. Qc8+ {[%clk 0:00:04.6]}
51... Kh7 {[%clk 0:00:03.3]} 52. Qf5+ {[%clk 0:00:05]} 52... Kh8 {[%clk
0:00:03.7]} 53. Qc8+ {[%clk 0:00:04.8]} 53... Bg8 {[%clk 0:00:04.2]} 54. Qc3
{[%clk 0:00:04.8]} 54... Kh7 {[%clk 0:00:03.4]} 55. Qc2 {[%clk 0:00:05.1]} 55...
Kh8 {[%clk 0:00:03.3]} 56. Qc3 {[%clk 0:00:05.5]} 56... Qb7 {[%clk 0:00:03.4]}
57. Kc2 {[%clk 0:00:05.9]} 57... Qd5 {[%clk 0:00:03.6]} 58. Qd3 {[%clk
0:00:06.3]} 58... Qc6+ {[%clk 0:00:02.4]} 59. Qc3 {[%clk 0:00:06.3]} 59... Qb6
{[%clk 0:00:03.3]} 60. Qxe5 {[%clk 0:00:06]} 60... Qc6+ {[%clk 0:00:03.8]} 61.
Qc3 {[%clk 0:00:06.3]} 61... Qb6 {[%clk 0:00:04.4]} 62. Kb2 {[%clk 0:00:06.8]}
62... Qc6 {[%clk 0:00:04.4]} 63. Qxc6 {[%clk 0:00:06]} 1-0

[Event "Early-Titled-Tuesday-Blitz-November-28-2023"]
[Site "Chess.com"]
[Date "2023.11.28"]
[Round "7"]
[White "kikoveiga"]
[Black "missponyo10"]
[Result "1-0"]
[WhiteElo "2569"]
[BlackElo "2202"]
[TimeControl "180+1"]
[EndTime "9:26:04 PST"]
[Termination "kikoveiga won by checkmate"]

1. c4 {[%clk 0:03:00.9]} 1... e5 {[%clk 0:02:57.8]} 2. Nc3 {[%clk 0:03:00.2]}
2... Nf6 {[%clk 0:02:57.4]} 3. Nf3 {[%clk 0:03:00.6]} 3... d6 {[%clk 0:02:57.1]}
4. d4 {[%clk 0:03:00.3]} 4... exd4 {[%clk 0:02:56.7]} 5. Nxd4 {[%clk 0:03:00.6]}
5... Be7 {[%clk 0:02:53.9]} 6. e4 {[%clk 0:02:58.1]} 6... O-O {[%clk 0:02:53.8]}
7. Be2 {[%clk 0:02:56.5]} 7... c5 {[%clk 0:02:53.4]} 8. Nc2 {[%clk 0:02:53.9]}
8... a6 {[%clk 0:02:52.1]} 9. O-O {[%clk 0:02:54.4]} 9... Nc6 {[%clk 0:02:51.7]}
10. Bf4 {[%clk 0:02:54.3]} 10... Qc7 {[%clk 0:02:50.6]} 11. Qd2 {[%clk
0:02:49.2]} 11... Be6 {[%clk 0:02:50.1]} 12. Rad1 {[%clk 0:02:48.7]} 12... Rad8
{[%clk 0:02:49.9]} 13. Bg3 {[%clk 0:02:33.5]} 13... Ne8 {[%clk 0:02:44.5]} 14.
Nd5 {[%clk 0:02:27.4]} 14... Bxd5 {[%clk 0:02:40.9]} 15. exd5 {[%clk 0:02:28.3]}
15... Nb8 {[%clk 0:02:37.7]} 16. Rfe1 {[%clk 0:02:25.4]} 16... Bf6 {[%clk
0:02:37.2]} 17. Ne3 {[%clk 0:02:22.7]} 17... g6 {[%clk 0:02:33.5]} 18. h4 {[%clk
0:02:16.8]} 18... Bg7 {[%clk 0:02:33]} 19. h5 {[%clk 0:02:16.5]} 19... Nf6
{[%clk 0:02:32.9]} 20. Bh4 {[%clk 0:02:07.8]} 20... Rde8 {[%clk 0:02:28.9]} 21.
h6 {[%clk 0:02:04.5]} 21... Bh8 {[%clk 0:02:26.8]} 22. Ng4 {[%clk 0:01:57.6]}
22... Nxg4 {[%clk 0:02:22.6]} 23. Bxg4 {[%clk 0:01:58.5]} 23... Nd7 {[%clk
0:02:22.3]} 24. Be7 {[%clk 0:01:46.2]} 24... Ne5 {[%clk 0:02:18.7]} 25. Bxf8
{[%clk 0:01:46.4]} 25... Rxf8 {[%clk 0:02:15.4]} 26. Be2 {[%clk 0:01:43.1]}
26... f5 {[%clk 0:02:10.3]} 27. Bf1 {[%clk 0:01:31.8]} 27... Qd8 {[%clk
0:02:01.5]} 28. f4 {[%clk 0:01:29.6]} 28... Ng4 {[%clk 0:01:59.7]} 29. g3 {[%clk
0:01:24.9]} 29... Bd4+ {[%clk 0:01:55.4]} 30. Kg2 {[%clk 0:01:23.3]} 30... Qf6
{[%clk 0:01:49.4]} 31. Re6 {[%clk 0:01:21.4]} 31... Qh8 {[%clk 0:01:45.3]} 32.
Be2 {[%clk 0:01:14.3]} 32... Nxh6 {[%clk 0:01:33.4]} 33. Rh1 {[%clk 0:01:12.6]}
33... Qg7 {[%clk 0:01:31]} 34. Bf3 {[%clk 0:01:05.4]} 34... Bxb2 {[%clk
0:01:28.4]} 35. Rxd6 {[%clk 0:01:04.5]} 35... Bd4 {[%clk 0:01:17.6]} 36. Re6
{[%clk 0:01:02.8]} 36... Nf7 {[%clk 0:01:15.6]} 37. d6 {[%clk 0:01:00.9]} 37...
Bf6 {[%clk 0:01:11]} 38. Bd5 {[%clk 0:01:00.9]} 38... Kh8 {[%clk 0:01:09.2]} 39.
d7 {[%clk 0:00:58]} 39... Nd8 {[%clk 0:00:57.8]} 40. Re8 {[%clk 0:00:58]} 40...
Be7 {[%clk 0:00:51.7]} 41. Qe3 {[%clk 0:00:47.3]} 41... Qb2+ {[%clk 0:00:50.7]}
42. Kh3 {[%clk 0:00:46.2]} 42... Bd6 {[%clk 0:00:49.1]} 43. Rxd8 {[%clk
0:00:33.7]} 43... Rxd8 {[%clk 0:00:36.9]} 44. Qe8+ {[%clk 0:00:33.8]} 44... Rxe8
{[%clk 0:00:35.1]} 45. dxe8=Q+ {[%clk 0:00:33.2]} 45... Kg7 {[%clk 0:00:36]} 46.
Qf7+ {[%clk 0:00:32.2]} 46... Kh6 {[%clk 0:00:34.5]} 47. Qxb7 {[%clk 0:00:26.8]}
47... Qe2 {[%clk 0:00:33.1]} 48. Bg8 {[%clk 0:00:20.4]} 48... Be7 {[%clk
0:00:24.6]} 49. Qg2 {[%clk 0:00:14.5]} 49... Qd3 {[%clk 0:00:20.5]} 50. Qf2
{[%clk 0:00:10.1]} 50... Kg7 {[%clk 0:00:20.5]} 51. Bd5 {[%clk 0:00:08.4]} 51...
Qa3 {[%clk 0:00:19.1]} 52. Kg2 {[%clk 0:00:08.2]} 52... Bd6 {[%clk 0:00:19.1]}
53. Re1 {[%clk 0:00:08.5]} 53... Qa4 {[%clk 0:00:19.1]} 54. Re2 {[%clk
0:00:08.8]} 54... Qd7 {[%clk 0:00:19.1]} 55. Qf3 {[%clk 0:00:09.2]} 55... Kh6
{[%clk 0:00:18.6]} 56. Kg1 {[%clk 0:00:08.4]} 56... Qg7 {[%clk 0:00:18.3]} 57.
Rh2# {[%clk 0:00:07.7]} 1-0

[Event "Early-Titled-Tuesday-Blitz-November-28-2023"]
[Site "Chess.com"]
[Date "2023.11.28"]
[Round "7"]
[White "GeorgiosSouleidis"]
[Black "Kirill_Klukin"]
[Result "0-1"]
[WhiteElo "2638"]
[BlackElo "2862"]
[TimeControl "180+1"]
[EndTime "9:26:06 PST"]
[Termination "Kirill_Klukin won by resignation"]

1. e4 {[%clk 0:03:00]} 1... c5 {[%clk 0:03:00]} 2. Nf3 {[%clk 0:02:58.8]} 2...
g6 {[%clk 0:03:00.3]} 3. Bc4 {[%clk 0:02:58.4]} 3... Bg7 {[%clk 0:03:00.3]} 4.
O-O {[%clk 0:02:58.7]} 4... Nc6 {[%clk 0:03:00.6]} 5. Re1 {[%clk 0:02:59.2]}
5... e6 {[%clk 0:03:01]} 6. c3 {[%clk 0:02:59.2]} 6... Nge7 {[%clk 0:03:01.1]}
7. d4 {[%clk 0:02:59.6]} 7... d5 {[%clk 0:02:58.3]} 8. exd5 {[%clk 0:03:00]}
8... exd5 {[%clk 0:02:59.2]} 9. Bb3 {[%clk 0:02:58.9]} 9... cxd4 {[%clk
0:02:57.2]} 10. cxd4 {[%clk 0:02:56.2]} 10... O-O {[%clk 0:02:57.5]} 11. Nc3
{[%clk 0:02:47.8]} 11... Nf5 {[%clk 0:02:33.5]} 12. Bg5 {[%clk 0:02:36.9]} 12...
Qd6 {[%clk 0:02:19.8]} 13. Nxd5 {[%clk 0:02:29.8]} 13... Be6 {[%clk 0:01:54.2]}
14. Bf4 {[%clk 0:02:05.5]} 14... Qd8 {[%clk 0:01:44.7]} 15. Nc7 {[%clk
0:01:21.8]} 15... Bxb3 {[%clk 0:01:44]} 16. axb3 {[%clk 0:01:22.7]} 16... Rc8
{[%clk 0:01:11.7]} 17. d5 {[%clk 0:01:21.4]} 17... Ncd4 {[%clk 0:00:51]} 18.
Nxd4 {[%clk 0:01:09.9]} 18... Bxd4 {[%clk 0:00:51.1]} 19. Nb5 {[%clk 0:00:37.4]}
19... Bxf2+ {[%clk 0:00:35.8]} 20. Kxf2 {[%clk 0:00:36.8]} 20... Qb6+ {[%clk
0:00:36.5]} 21. Nd4 {[%clk 0:00:30.1]} 21... Rfd8 {[%clk 0:00:11.5]} 22. Kf1
{[%clk 0:00:21.2]} 22... Rxd5 {[%clk 0:00:08.6]} 23. Rc1 {[%clk 0:00:16.4]}
23... Rcd8 {[%clk 0:00:07]} 24. Rc4 {[%clk 0:00:06.7]} 24... Nxd4 {[%clk
0:00:07.5]} 25. Be3 {[%clk 0:00:07.1]} 25... Qb5 {[%clk 0:00:07.5]} 26. Bxd4
{[%clk 0:00:05.9]} 26... Rxd4 {[%clk 0:00:07.7]} 27. Qe2 {[%clk 0:00:06.5]}
27... Rd2 {[%clk 0:00:06.8]} 28. Qe7 {[%clk 0:00:04.4]} 28... Qd5 {[%clk
0:00:07.1]} 29. Qe4 {[%clk 0:00:03.6]} 29... Rxb2 {[%clk 0:00:05.2]} 30. Qxd5
{[%clk 0:00:03.6]} 30... Rxd5 {[%clk 0:00:06.1]} 31. Re8+ {[%clk 0:00:03.5]}
31... Kg7 {[%clk 0:00:06.5]} 32. Re7 {[%clk 0:00:03.8]} 32... Rf5+ {[%clk
0:00:06.9]} 33. Ke1 {[%clk 0:00:03.5]} 33... Rff2 {[%clk 0:00:07.7]} 34. Rcc7
{[%clk 0:00:03.2]} 34... b6 {[%clk 0:00:07.6]} 35. Rxa7 {[%clk 0:00:02.3]} 35...
Rf6 {[%clk 0:00:08.4]} 36. Re2 {[%clk 0:00:01.9]} 36... Rxb3 {[%clk 0:00:08.7]}
37. Raa2 {[%clk 0:00:01.9]} 37... Rb1+ {[%clk 0:00:09]} 38. Kd2 {[%clk
0:00:02.1]} 38... Rb5 {[%clk 0:00:09.9]} 39. Ke3 {[%clk 0:00:02.6]} 39... Re5+
{[%clk 0:00:10.3]} 40. Kd3 {[%clk 0:00:03.5]} 40... Rd6+ {[%clk 0:00:10.3]} 41.
Kc3 {[%clk 0:00:03.8]} 41... Rc5+ {[%clk 0:00:10.6]} 42. Kb3 {[%clk 0:00:04.4]}
42... Rcd5 {[%clk 0:00:11.3]} 43. Kc4 {[%clk 0:00:04.7]} 43... Rd4+ {[%clk
0:00:11.7]} 44. Kb5 {[%clk 0:00:05.3]} 44... R4d5+ {[%clk 0:00:12.3]} 45. Kc4
{[%clk 0:00:05.9]} 45... Rf5 {[%clk 0:00:12.4]} 46. Rad2 {[%clk 0:00:05.9]}
46... Rdf6 {[%clk 0:00:13]} 47. Kb4 {[%clk 0:00:05.2]} 47... h5 {[%clk
0:00:13.6]} 48. g3 {[%clk 0:00:05.7]} 48... Rg5 {[%clk 0:00:12.4]} 49. Kc4
{[%clk 0:00:06.1]} 49... Rff5 {[%clk 0:00:12.7]} 50. Kb3 {[%clk 0:00:05.9]}
50... Rg4 {[%clk 0:00:13.2]} 51. Re3 {[%clk 0:00:05.7]} 51... h4 {[%clk
0:00:13]} 52. Rde2 {[%clk 0:00:05.1]} 52... hxg3 {[%clk 0:00:13.2]} 53. hxg3
{[%clk 0:00:05.9]} 53... Rfg5 {[%clk 0:00:13.8]} 54. Rg2 {[%clk 0:00:05.9]}
54... Rd4 {[%clk 0:00:14]} 55. Kc3 {[%clk 0:00:06.1]} 55... Rdd5 {[%clk
0:00:14.6]} 56. Kc4 {[%clk 0:00:06.2]} 56... Rc5+ {[%clk 0:00:15.4]} 57. Kd4
{[%clk 0:00:06.5]} 57... Rgd5+ {[%clk 0:00:15.4]} 58. Ke4 {[%clk 0:00:07.4]}
58... Re5+ {[%clk 0:00:16.1]} 59. Kf4 {[%clk 0:00:08.2]} 59... Rxe3 {[%clk
0:00:17]} 60. Kxe3 {[%clk 0:00:09.1]} 60... Kf6 {[%clk 0:00:17.8]} 61. Rf2+
{[%clk 0:00:09.2]} 61... Rf5 {[%clk 0:00:17.2]} 62. Rb2 {[%clk 0:00:09]} 62...
b5 {[%clk 0:00:17.7]} 63. Ke4 {[%clk 0:00:09.7]} 63... Kg5 {[%clk 0:00:17.9]}
64. Rb4 {[%clk 0:00:07.4]} 64... Kg4 {[%clk 0:00:18]} 65. Ke3+ {[%clk
0:00:07.3]} 65... Kxg3 {[%clk 0:00:18.4]} 66. Rb1 {[%clk 0:00:07.7]} 66... Kh4
{[%clk 0:00:15.5]} 67. Rh1+ {[%clk 0:00:07.7]} 67... Kg5 {[%clk 0:00:15.8]} 68.
Rg1+ {[%clk 0:00:08.4]} 68... Kf6 {[%clk 0:00:16.6]} 69. Rb1 {[%clk 0:00:09.2]}
69... g5 {[%clk 0:00:16.9]} 70. Ke4 {[%clk 0:00:09.5]} 70... g4 {[%clk
0:00:17.3]} 0-1

[Event "Early-Titled-Tuesday-Blitz-November-28-2023"]
[Site "Chess.com"]
[Date "2023.11.28"]
[Round "7"]
[White "scarabee43"]
[Black "VincentKeymer"]
[Result "1/2-1/2"]
[WhiteElo "2828"]
[BlackElo "3018"]
[TimeControl "180+1"]
[EndTime "9:26:07 PST"]
[Termination "Game drawn - insufficient material"]

1. d4 {[%clk 0:03:00.9]} 1... Nf6 {[%clk 0:02:59.5]} 2. c4 {[%clk 0:03:01.5]}
2... e6 {[%clk 0:02:59.9]} 3. Nf3 {[%clk 0:03:01.9]} 3... a6 {[%clk 0:02:54.8]}
4. Nc3 {[%clk 0:02:58.3]} 4... Bb4 {[%clk 0:02:54.3]} 5. Qc2 {[%clk 0:02:55]}
5... b5 {[%clk 0:02:53.5]} 6. e3 {[%clk 0:02:48.7]} 6... bxc4 {[%clk 0:02:51.7]}
7. Bxc4 {[%clk 0:02:48.8]} 7... O-O {[%clk 0:02:52.2]} 8. O-O {[%clk 0:02:48.3]}
8... Bb7 {[%clk 0:02:51.8]} 9. Be2 {[%clk 0:02:47.2]} 9... a5 {[%clk 0:02:45.9]}
10. a3 {[%clk 0:02:43.5]} 10... Be7 {[%clk 0:02:44.3]} 11. e4 {[%clk 0:02:41.3]}
11... d5 {[%clk 0:02:34.4]} 12. e5 {[%clk 0:02:38.1]} 12... Nfd7 {[%clk
0:02:31]} 13. Nb5 {[%clk 0:02:18.5]} 13... Ba6 {[%clk 0:02:23.1]} 14. Bf4 {[%clk
0:02:04]} 14... c5 {[%clk 0:02:21.4]} 15. Rfc1 {[%clk 0:01:56.5]} 15... Qb6
{[%clk 0:02:03.2]} 16. a4 {[%clk 0:01:49.2]} 16... Rc8 {[%clk 0:01:46.8]} 17.
Qd2 {[%clk 0:01:42.2]} 17... Nc6 {[%clk 0:01:43.6]} 18. Be3 {[%clk 0:01:17.5]}
18... cxd4 {[%clk 0:01:20.8]} 19. Nfxd4 {[%clk 0:01:16.6]} 19... Nxd4 {[%clk
0:01:14.7]} 20. Bxd4 {[%clk 0:01:14.6]} 20... Bc5 {[%clk 0:01:15.2]} 21. Bxc5
{[%clk 0:00:58.5]} 21... Nxc5 {[%clk 0:01:07]} 22. Nd6 {[%clk 0:00:48.4]} 22...
Rc7 {[%clk 0:00:39.8]} 23. Ra3 {[%clk 0:00:19.1]} 23... Ne4 {[%clk 0:00:16.7]}
24. Nxe4 {[%clk 0:00:16.4]} 24... Rxc1+ {[%clk 0:00:13.3]} 25. Qxc1 {[%clk
0:00:16.5]} 25... dxe4 {[%clk 0:00:14]} 26. Bxa6 {[%clk 0:00:15.5]} 26... Qxa6
{[%clk 0:00:14.9]} 27. h3 {[%clk 0:00:09.5]} 27... h6 {[%clk 0:00:12.5]} 28. Rc3
{[%clk 0:00:08.4]} 28... Qb7 {[%clk 0:00:11.7]} 29. Rc7 {[%clk 0:00:07.2]} 29...
Qb4 {[%clk 0:00:08]} 30. Rc4 {[%clk 0:00:06.8]} 30... Qb7 {[%clk 0:00:06.1]} 31.
Qf4 {[%clk 0:00:03.7]} 31... Qxb2 {[%clk 0:00:05]} 32. Qxe4 {[%clk 0:00:04.1]}
32... Rd8 {[%clk 0:00:04.7]} 33. g3 {[%clk 0:00:04.7]} 33... Qa1+ {[%clk
0:00:04.1]} 34. Kg2 {[%clk 0:00:05.3]} 34... Qb2 {[%clk 0:00:03.4]} 35. h4
{[%clk 0:00:05.2]} 35... Qb8 {[%clk 0:00:03]} 36. Rc5 {[%clk 0:00:04.3]} 36...
Qa7 {[%clk 0:00:03.3]} 37. Rc2 {[%clk 0:00:04.1]} 37... Qd7 {[%clk 0:00:03.3]}
38. Rb2 {[%clk 0:00:04.2]} 38... Qd4 {[%clk 0:00:03.1]} 39. Qxd4 {[%clk
0:00:02.5]} 39... Rxd4 {[%clk 0:00:04]} 40. Rb8+ {[%clk 0:00:01.8]} 40... Kh7
{[%clk 0:00:04.5]} 41. Rb7 {[%clk 0:00:02.4]} 41... Kg6 {[%clk 0:00:01.9]} 42.
h5+ {[%clk 0:00:02.1]} 42... Kxh5 {[%clk 0:00:02.2]} 43. Rxf7 {[%clk 0:00:02.8]}
43... Kg6 {[%clk 0:00:03]} 44. Re7 {[%clk 0:00:03.5]} 44... Rxa4 {[%clk
0:00:02.9]} 45. Rxe6+ {[%clk 0:00:03.9]} 45... Kf5 {[%clk 0:00:03.6]} 46. Re7
{[%clk 0:00:04.3]} 46... g5 {[%clk 0:00:04.3]} 47. Rh7 {[%clk 0:00:04.2]} 47...
Kxe5 {[%clk 0:00:03]} 48. Rxh6 {[%clk 0:00:04.7]} 48... g4 {[%clk 0:00:03.2]}
49. f4+ {[%clk 0:00:03.9]} 49... gxf3+ {[%clk 0:00:01.4]} 50. Kxf3 {[%clk
0:00:04.1]} 50... Ra3+ {[%clk 0:00:02.3]} 51. Kg4 {[%clk 0:00:04.4]} 51... a4
{[%clk 0:00:02.4]} 52. Ra6 {[%clk 0:00:04.8]} 52... Kd4 {[%clk 0:00:03]} 53. Kf4
{[%clk 0:00:04.5]} 53... Kc4 {[%clk 0:00:03.5]} 54. g4 {[%clk 0:00:05.1]} 54...
Ra1 {[%clk 0:00:03.3]} 55. g5 {[%clk 0:00:05.1]} 55... Kb5 {[%clk 0:00:03.8]}
56. Ra8 {[%clk 0:00:04.7]} 56... a3 {[%clk 0:00:04.3]} 57. g6 {[%clk 0:00:05.2]}
57... a2 {[%clk 0:00:04.8]} 58. Ke5 {[%clk 0:00:04.3]} 58... Re1+ {[%clk
0:00:04.8]} 59. Kf6 {[%clk 0:00:04.6]} 59... Rf1+ {[%clk 0:00:04.9]} 60. Ke6
{[%clk 0:00:04.1]} 60... Re1+ {[%clk 0:00:05.2]} 61. Kf6 {[%clk 0:00:04.5]}
61... a1=Q+ {[%clk 0:00:05.5]} 62. Rxa1 {[%clk 0:00:03.8]} 62... Rxa1 {[%clk
0:00:06.4]} 63. g7 {[%clk 0:00:03.6]} 63... Rf1+ {[%clk 0:00:07.2]} 64. Ke6
{[%clk 0:00:03.7]} 64... Rg1 {[%clk 0:00:08.1]} 65. Kf7 {[%clk 0:00:04.3]} 65...
Rxg7+ {[%clk 0:00:08.5]} 66. Kxg7 {[%clk 0:00:04.6]} 1/2-1/2

[Event "Early-Titled-Tuesday-Blitz-November-28-2023"]
[Site "Chess.com"]
[Date "2023.11.28"]
[Round "7"]
[White "SayonaraPonytail"]
[Black "Leonid_Starozhilov"]
[Result "0-1"]
[WhiteElo "2549"]
[BlackElo "2743"]
[TimeControl "180+1"]
[EndTime "9:26:13 PST"]
[Termination "Leonid_Starozhilov won by resignation"]

1. e4 {[%clk 0:03:00.9]} 1... c6 {[%clk 0:02:56.4]} 2. d4 {[%clk 0:03:00]} 2...
d5 {[%clk 0:02:57.3]} 3. e5 {[%clk 0:03:00.3]} 3... c5 {[%clk 0:02:49.3]} 4.
dxc5 {[%clk 0:03:01.2]} 4... e6 {[%clk 0:02:48.5]} 5. a3 {[%clk 0:03:01.4]} 5...
a5 {[%clk 0:02:44.9]} 6. Be3 {[%clk 0:02:55.2]} 6... Nd7 {[%clk 0:02:16.5]} 7.
Bb5 {[%clk 0:02:53.3]} 7... Ne7 {[%clk 0:02:16.8]} 8. c3 {[%clk 0:02:50.9]} 8...
Nc6 {[%clk 0:02:17.1]} 9. Bd4 {[%clk 0:02:48.4]} 9... Nxc5 {[%clk 0:02:05.4]}
10. Nd2 {[%clk 0:02:39.5]} 10... Bd7 {[%clk 0:02:04.5]} 11. b4 {[%clk 0:02:25]}
11... axb4 {[%clk 0:01:54.7]} 12. axb4 {[%clk 0:02:19]} 12... Rxa1 {[%clk
0:01:54]} 13. Qxa1 {[%clk 0:02:17.5]} 13... Nxd4 {[%clk 0:01:54]} 14. Bxd7+
{[%clk 0:02:13.4]} 14... Nxd7 {[%clk 0:01:33.8]} 15. cxd4 {[%clk 0:02:12.1]}
15... Bxb4 {[%clk 0:01:34.5]} 16. Nf3 {[%clk 0:02:12.1]} 16... Qa5 {[%clk
0:01:32.7]} 17. Qc1 {[%clk 0:02:08.8]} 17... O-O {[%clk 0:01:30.6]} 18. O-O
{[%clk 0:02:08.7]} 18... Nb6 {[%clk 0:01:27.8]} 19. Nb3 {[%clk 0:02:04.2]} 19...
Qb5 {[%clk 0:01:24.1]} 20. Qb1 {[%clk 0:01:56.1]} 20... Be7 {[%clk 0:00:53.4]}
21. Nc5 {[%clk 0:01:48]} 21... Qxb1 {[%clk 0:00:47]} 22. Rxb1 {[%clk 0:01:48.9]}
22... Bxc5 {[%clk 0:00:47.4]} 23. dxc5 {[%clk 0:01:49.8]} 23... Nd7 {[%clk
0:00:45.7]} 24. Rxb7 {[%clk 0:01:37.5]} 24... Nxc5 {[%clk 0:00:45.6]} 25. Rc7
{[%clk 0:01:37.6]} 25... Nd3 {[%clk 0:00:39.6]} 26. Kf1 {[%clk 0:01:35.6]} 26...
h6 {[%clk 0:00:34.9]} 27. g3 {[%clk 0:01:35.2]} 27... Ra8 {[%clk 0:00:26]} 28.
Ke2 {[%clk 0:01:33.6]} 28... Nb2 {[%clk 0:00:23.4]} 29. h4 {[%clk 0:01:31]}
29... Nc4 {[%clk 0:00:19]} 30. g4 {[%clk 0:01:25.4]} 30... Ra2+ {[%clk
0:00:18.4]} 31. Kf1 {[%clk 0:01:22.9]} 31... Nd2+ {[%clk 0:00:15.5]} 32. Nxd2
{[%clk 0:01:22.5]} 32... Rxd2 {[%clk 0:00:16.4]} 33. Rc8+ {[%clk 0:01:15.1]}
33... Kh7 {[%clk 0:00:14.9]} 34. Rf8 {[%clk 0:01:14.2]} 34... Rd4 {[%clk
0:00:10.7]} 35. f3 {[%clk 0:01:13.5]} 35... Rf4 {[%clk 0:00:09.7]} 36. Kg2
{[%clk 0:01:10.4]} 36... g5 {[%clk 0:00:10]} 37. h5 {[%clk 0:01:03]} 37... Kg7
{[%clk 0:00:10.2]} 38. Rd8 {[%clk 0:01:02.7]} 38... Rd4 {[%clk 0:00:10.1]} 39.
Kf2 {[%clk 0:01:01.4]} 39... Rd3 {[%clk 0:00:09.9]} 40. Ke2 {[%clk 0:01:01.4]}
40... Ra3 {[%clk 0:00:10.2]} 41. Rd7 {[%clk 0:01:00.6]} 41... Ra2+ {[%clk
0:00:10.2]} 42. Ke3 {[%clk 0:01:00.7]} 42... Ra1 {[%clk 0:00:10.1]} 43. Ke2
{[%clk 0:00:59.1]} 43... Ra3 {[%clk 0:00:07.8]} 44. Rd8 {[%clk 0:00:58.7]} 44...
Ra7 {[%clk 0:00:07.3]} 45. Ke3 {[%clk 0:00:58.4]} 45... Rb7 {[%clk 0:00:06.9]}
46. Ke2 {[%clk 0:00:58.4]} 46... f6 {[%clk 0:00:06]} 47. Rd6 {[%clk 0:00:55.6]}
47... Re7 {[%clk 0:00:04.7]} 48. exf6+ {[%clk 0:00:53.6]} 48... Kxf6 {[%clk
0:00:05.6]} 49. Ke3 {[%clk 0:00:53.4]} 49... Ke5 {[%clk 0:00:05.9]} 50. Rd8
{[%clk 0:00:53.6]} 50... Rf7 {[%clk 0:00:06.3]} 51. Rg8 {[%clk 0:00:53.2]} 51...
d4+ {[%clk 0:00:05.9]} 52. Ke2 {[%clk 0:00:53.1]} 52... Rf6 {[%clk 0:00:05.3]}
53. Ra8 {[%clk 0:00:51.8]} 53... Kf4 {[%clk 0:00:03.5]} 54. Ra4 {[%clk 0:00:44]}
54... Kg3 {[%clk 0:00:02.7]} 55. Rxd4 {[%clk 0:00:43.6]} 55... Rxf3 {[%clk
0:00:03.1]} 56. Re4 {[%clk 0:00:43.3]} 56... Rf2+ {[%clk 0:00:03.6]} 57. Ke3
{[%clk 0:00:43.3]} 57... Rf3+ {[%clk 0:00:04]} 58. Ke2 {[%clk 0:00:43.7]} 58...
Rf6 {[%clk 0:00:04.3]} 59. Ke3 {[%clk 0:00:43.2]} 59... e5 {[%clk 0:00:04.7]}
60. Ke2 {[%clk 0:00:38.2]} 60... Rf4 {[%clk 0:00:05.1]} 61. Rxe5 {[%clk
0:00:38.5]} 61... Kxg4 {[%clk 0:00:05.8]} 62. Re6 {[%clk 0:00:39]} 62... Kxh5
{[%clk 0:00:06.5]} 63. Ke3 {[%clk 0:00:38.9]} 63... Rf1 {[%clk 0:00:06.8]} 64.
Ke2 {[%clk 0:00:39.1]} 64... Rf8 {[%clk 0:00:06.8]} 65. Ra6 {[%clk 0:00:38]}
65... g4 {[%clk 0:00:07.1]} 66. Ra5+ {[%clk 0:00:37.8]} 66... Kh4 {[%clk
0:00:07.6]} 67. Ra6 {[%clk 0:00:38.4]} 67... h5 {[%clk 0:00:07.8]} 68. Ke3
{[%clk 0:00:38.4]} 68... g3 {[%clk 0:00:08.3]} 69. Ra1 {[%clk 0:00:37.5]} 69...
Kg4 {[%clk 0:00:08.3]} 70. Ra4+ {[%clk 0:00:36.7]} 70... Kh3 {[%clk 0:00:08.6]}
71. Ke2 {[%clk 0:00:36.4]} 71... h4 {[%clk 0:00:08.7]} 72. Ra1 {[%clk
0:00:35.2]} 72... g2 {[%clk 0:00:09.1]} 73. Ra3+ {[%clk 0:00:34.8]} 73... Kh2
{[%clk 0:00:09.4]} 0-1